[Event "*** Titled Tuesday Blitz"]
[Site "Chess.com"]
[Date "2021.04.20"]
[Round "6"]
[White "Murad_Ibrahimli"]
[Black "elisak43"]
[Result "1-0"]
[WhiteElo "2746"]
[BlackElo "2518"]
[TimeControl "180+1"]
[EndTime "11:06:36 PDT"]
[Termination "Murad_Ibrahimli won by resignation"]

1. Nf3 {[%clk 0:03:00.9]} 1... Nf6 {[%clk 0:02:59.3]} 2. b4 {[%clk 0:02:59.7]}
2... g6 {[%clk 0:02:57]} 3. Bb2 {[%clk 0:02:59.1]} 3... Bg7 {[%clk 0:02:57.9]}
4. e3 {[%clk 0:02:57.9]} 4... O-O {[%clk 0:02:58.1]} 5. Be2 {[%clk 0:02:58.4]}
5... d6 {[%clk 0:02:55.5]} 6. d4 {[%clk 0:02:58.8]} 6... Nbd7 {[%clk 0:02:56]}
7. c4 {[%clk 0:02:58]} 7... e5 {[%clk 0:02:50.9]} 8. O-O {[%clk 0:02:56.1]} 8...
e4 {[%clk 0:02:48]} 9. Nfd2 {[%clk 0:02:55.9]} 9... Re8 {[%clk 0:02:47.8]} 10.
Nc3 {[%clk 0:02:55.9]} 10... Nf8 {[%clk 0:02:42.4]} 11. a4 {[%clk 0:02:54.8]}
11... h5 {[%clk 0:02:41.6]} 12. a5 {[%clk 0:02:55.2]} 12... h4 {[%clk
0:02:39.5]} 13. h3 {[%clk 0:02:53.2]} 13... N8h7 {[%clk 0:02:39]} 14. Re1 {[%clk
0:02:52.5]} 14... Ng5 {[%clk 0:02:38.8]} 15. Bf1 {[%clk 0:02:53]} 15... Bf5
{[%clk 0:02:31.2]} 16. a6 {[%clk 0:02:51.8]} 16... b6 {[%clk 0:02:29]} 17. Nd5
{[%clk 0:02:47.5]} 17... c6 {[%clk 0:02:20.1]} 18. Nxf6+ {[%clk 0:02:46.6]}
18... Qxf6 {[%clk 0:02:19.2]} 19. Ra2 {[%clk 0:02:36.2]} 19... Qe7 {[%clk
0:01:53.2]} 20. d5 {[%clk 0:02:25.7]} 20... c5 {[%clk 0:01:44.6]} 21. Bxg7
{[%clk 0:01:37.8]} 21... Kxg7 {[%clk 0:01:44.3]} 22. Qb3 {[%clk 0:01:36]} 22...
cxb4 {[%clk 0:01:29.8]} 23. Qxb4 {[%clk 0:01:35.1]} 23... Rac8 {[%clk
0:01:30.4]} 24. Qb2+ {[%clk 0:01:33.4]} 24... f6 {[%clk 0:01:29.1]} 25. Qd4
{[%clk 0:01:19.7]} 25... Qe5 {[%clk 0:01:15.9]} 26. Qxe5 {[%clk 0:01:19.1]}
26... Rxe5 {[%clk 0:01:04.4]} 27. Rb1 {[%clk 0:01:13.7]} 27... Re7 {[%clk
0:01:02.3]} 28. Nb3 {[%clk 0:01:10.2]} 28... Nf7 {[%clk 0:00:57.4]} 29. Nd4
{[%clk 0:01:09.5]} 29... Bd7 {[%clk 0:00:57.7]} 30. Be2 {[%clk 0:01:02.5]} 30...
Ne5 {[%clk 0:00:57.1]} 31. Rb4 {[%clk 0:01:03.1]} 31... Rc7 {[%clk 0:00:48]} 32.
Ra3 {[%clk 0:00:56.9]} 32... Re8 {[%clk 0:00:46.4]} 33. Kh2 {[%clk 0:00:54.6]}
33... Rec8 {[%clk 0:00:46.1]} 34. Rc3 {[%clk 0:00:54.6]} 34... f5 {[%clk
0:00:42.8]} 35. f4 {[%clk 0:00:54.3]} 35... Nf7 {[%clk 0:00:18.2]} 36. g3 {[%clk
0:00:52.8]} 36... hxg3+ {[%clk 0:00:17.8]} 37. Kxg3 {[%clk 0:00:53.7]} 37... Kf6
{[%clk 0:00:18.7]} 38. Rc1 {[%clk 0:00:54]} 38... g5 {[%clk 0:00:18.7]} 39.
fxg5+ {[%clk 0:00:54]} 39... Nxg5 {[%clk 0:00:18.2]} 40. h4 {[%clk 0:00:52.1]}
40... Nf7 {[%clk 0:00:17.8]} 41. Rf1 {[%clk 0:00:52]} 41... Ne5 {[%clk
0:00:17.2]} 42. h5 {[%clk 0:00:46.2]} 42... Rg8+ {[%clk 0:00:16.1]} 43. Kf2
{[%clk 0:00:46.4]} 43... Rg5 {[%clk 0:00:10]} 44. Rh1 {[%clk 0:00:45.4]} 44...
Rc8 {[%clk 0:00:09.9]} 45. Rbb1 {[%clk 0:00:42.3]} 45... Rcg8 {[%clk 0:00:09.5]}
46. Rh2 {[%clk 0:00:39.3]} 46... Rh8 {[%clk 0:00:08.2]} 47. h6 {[%clk
0:00:38.5]} 47... Rg6 {[%clk 0:00:07.7]} 48. h7 {[%clk 0:00:36]} 48... Rg7
{[%clk 0:00:08.1]} 49. Rbh1 {[%clk 0:00:36.1]} 49... Nf7 {[%clk 0:00:07.3]} 50.
Rh5 {[%clk 0:00:29.3]} 50... Rg5 {[%clk 0:00:06.5]} 51. Rxg5 {[%clk 0:00:24]}
51... Nxg5 {[%clk 0:00:06.5]} 52. Rh6+ {[%clk 0:00:23.2]} 52... Ke7 {[%clk
0:00:05]} 53. Rh5 {[%clk 0:00:19.3]} 53... Nxh7 {[%clk 0:00:04.2]} 54. Bf1
{[%clk 0:00:18.1]} 54... Kf6 {[%clk 0:00:03.9]} 55. Bh3 {[%clk 0:00:17.4]} 55...
Kg6 {[%clk 0:00:04.4]} 56. Rh4 {[%clk 0:00:18]} 56... Ng5 {[%clk 0:00:04]} 57.
Rxh8 {[%clk 0:00:17.6]} 57... f4 {[%clk 0:00:02.6]} 58. Bxd7 {[%clk 0:00:17]}
1-0

[Event "*** Titled Tuesday Blitz"]
[Site "Chess.com"]
[Date "2021.04.20"]
[Round "6"]
[White "Hikaru"]
[Black "Msb2"]
[Result "1-0"]
[WhiteElo "3169"]
[BlackElo "2911"]
[TimeControl "180+1"]
[EndTime "11:06:39 PDT"]
[Termination "Hikaru won on time"]

1. Nf3 {[%clk 0:03:00.9]} 1... d5 {[%clk 0:03:00]} 2. b3 {[%clk 0:02:59.8]} 2...
Bg4 {[%clk 0:02:59.7]} 3. Bb2 {[%clk 0:02:59.8]} 3... Nd7 {[%clk 0:03:00.3]} 4.
d4 {[%clk 0:02:56.5]} 4... e6 {[%clk 0:02:59.4]} 5. Nbd2 {[%clk 0:02:56.7]} 5...
Ngf6 {[%clk 0:02:59.6]} 6. e3 {[%clk 0:02:56.8]} 6... Bd6 {[%clk 0:02:58.7]} 7.
h3 {[%clk 0:02:57.1]} 7... Bh5 {[%clk 0:02:58]} 8. c4 {[%clk 0:02:57.6]} 8... c6
{[%clk 0:02:58.1]} 9. Bd3 {[%clk 0:02:57.7]} 9... O-O {[%clk 0:02:58.2]} 10. Qc2
{[%clk 0:02:57.7]} 10... Bg6 {[%clk 0:02:41.6]} 11. Bxg6 {[%clk 0:02:57.4]}
11... hxg6 {[%clk 0:02:42.5]} 12. O-O {[%clk 0:02:57.7]} 12... Qe7 {[%clk
0:02:42.6]} 13. e4 {[%clk 0:02:55.9]} 13... dxe4 {[%clk 0:02:40.2]} 14. Nxe4
{[%clk 0:02:56.8]} 14... Nxe4 {[%clk 0:02:41.1]} 15. Qxe4 {[%clk 0:02:57.7]}
15... Ba3 {[%clk 0:02:38.5]} 16. Bxa3 {[%clk 0:02:57.3]} 16... Qxa3 {[%clk
0:02:39.4]} 17. Qc2 {[%clk 0:02:56.7]} 17... Rfd8 {[%clk 0:02:38.5]} 18. Rad1
{[%clk 0:02:55.2]} 18... a5 {[%clk 0:02:38.4]} 19. Rfe1 {[%clk 0:02:53.8]} 19...
Nf6 {[%clk 0:02:33.5]} 20. Re3 {[%clk 0:02:38]} 20... a4 {[%clk 0:02:26.3]} 21.
Ne5 {[%clk 0:02:37.6]} 21... c5 {[%clk 0:02:11.5]} 22. b4 {[%clk 0:01:38.9]}
22... Qxb4 {[%clk 0:02:10.4]} 23. Rb1 {[%clk 0:01:39.1]} 23... Qa5 {[%clk
0:02:11]} 24. d5 {[%clk 0:01:39.8]} 24... Qc7 {[%clk 0:00:33.8]} 25. dxe6 {[%clk
0:01:38]} 25... fxe6 {[%clk 0:00:34.7]} 26. Nxg6 {[%clk 0:01:31.5]} 26... Ra6
{[%clk 0:00:28.7]} 27. Rbe1 {[%clk 0:01:25.4]} 27... Re8 {[%clk 0:00:28.7]} 28.
Re5 {[%clk 0:01:12]} 28... Qd6 {[%clk 0:00:11.1]} 29. Rg5 {[%clk 0:01:07.4]}
29... Qc7 {[%clk 0:00:10.1]} 30. Ne5 {[%clk 0:01:06.1]} 30... Rd6 {[%clk
0:00:08.7]} 31. Qg6 {[%clk 0:01:03.8]} 31... Rf8 {[%clk 0:00:08]} 32. Nf3 {[%clk
0:01:04.3]} 32... b6 {[%clk 0:00:06.5]} 33. Rge5 {[%clk 0:01:00.7]} 33... Qf7
{[%clk 0:00:06.5]} 34. Qc2 {[%clk 0:01:00.9]} 34... Qd7 {[%clk 0:00:03.4]} 35.
R5e2 {[%clk 0:00:56.4]} 35... Re8 {[%clk 0:00:04]} 36. Ne5 {[%clk 0:00:54.4]}
36... Qa7 {[%clk 0:00:04.6]} 37. Re3 {[%clk 0:00:46.4]} 37... Red8 {[%clk
0:00:05]} 38. Nf3 {[%clk 0:00:44.3]} 38... Qd7 {[%clk 0:00:04.5]} 39. a3 {[%clk
0:00:37.6]} 39... Rd1 {[%clk 0:00:04.5]} 40. Ng5 {[%clk 0:00:22.3]} 40... Rxe1+
{[%clk 0:00:04.5]} 41. Rxe1 {[%clk 0:00:23]} 41... Qd2 {[%clk 0:00:04.8]} 42.
Qxd2 {[%clk 0:00:21.2]} 42... Rxd2 {[%clk 0:00:05.7]} 43. Rxe6 {[%clk
0:00:21.4]} 43... Rb2 {[%clk 0:00:05]} 44. Rc6 {[%clk 0:00:21.3]} 44... Kf8
{[%clk 0:00:05.5]} 45. Rc7 {[%clk 0:00:21.6]} 45... Rb3 {[%clk 0:00:05.1]} 46.
Ne6+ {[%clk 0:00:21.4]} 46... Ke8 {[%clk 0:00:04.6]} 47. Nxg7+ {[%clk
0:00:21.7]} 47... Kf8 {[%clk 0:00:05.5]} 48. Ne6+ {[%clk 0:00:22.6]} 48... Ke8
{[%clk 0:00:06]} 49. g4 {[%clk 0:00:17.5]} 49... Rxa3 {[%clk 0:00:05.8]} 50. g5
{[%clk 0:00:17.7]} 50... Ne4 {[%clk 0:00:01.8]} 51. Ng7+ {[%clk 0:00:17.8]}
51... Kd8 {[%clk 0:00:01.6]} 52. Ne6+ {[%clk 0:00:18.7]} 52... Ke8 {[%clk
0:00:02.5]} 53. g6 {[%clk 0:00:19.2]} 53... Ra1+ {[%clk 0:00:01.9]} 54. Kg2
{[%clk 0:00:19.2]} 54... Ra2 {[%clk 0:00:02.8]} 55. g7 {[%clk 0:00:17.8]} 55...
Nf6 {[%clk 0:00:03]} 56. h4 {[%clk 0:00:17]} 56... a3 {[%clk 0:00:03.5]} 57. h5
{[%clk 0:00:17.4]} 57... Ra1 {[%clk 0:00:03.8]} 58. h6 {[%clk 0:00:16.6]} 58...
a2 {[%clk 0:00:03.9]} 59. h7 {[%clk 0:00:17.2]} 59... Rg1+ {[%clk 0:00:04.2]}
60. Kxg1 {[%clk 0:00:17.3]} 60... a1=Q+ {[%clk 0:00:04.9]} 61. Kg2 {[%clk
0:00:18]} 61... Qa8+ {[%clk 0:00:04.9]} 62. Kh2 {[%clk 0:00:14.2]} 62... Ng4+
{[%clk 0:00:02.2]} 63. Kg3 {[%clk 0:00:13.7]} 63... Qa3+ {[%clk 0:00:02]} 64.
Kxg4 {[%clk 0:00:13]} 1-0

[Event "*** Titled Tuesday Blitz"]
[Site "Chess.com"]
[Date "2021.04.20"]
[Round "6"]
[White "korbul"]
[Black "eCztery"]
[Result "1/2-1/2"]
[WhiteElo "2583"]
[BlackElo "2409"]
[TimeControl "180+1"]
[EndTime "11:06:39 PDT"]
[Termination "Game drawn - insufficient material"]

1. e4 {[%clk 0:03:00.9]} 1... c5 {[%clk 0:02:58.4]} 2. Nf3 {[%clk 0:03:00.6]}
2... g6 {[%clk 0:02:58.4]} 3. d4 {[%clk 0:03:00.2]} 3... cxd4 {[%clk 0:02:59.3]}
4. Nxd4 {[%clk 0:02:59.6]} 4... Nc6 {[%clk 0:02:56.5]} 5. Nc3 {[%clk 0:02:59.5]}
5... Bg7 {[%clk 0:02:52.5]} 6. Nb3 {[%clk 0:02:59.3]} 6... Nf6 {[%clk
0:02:50.3]} 7. Be2 {[%clk 0:02:57.8]} 7... O-O {[%clk 0:02:47.9]} 8. O-O {[%clk
0:02:57]} 8... d6 {[%clk 0:02:46.8]} 9. Bg5 {[%clk 0:02:55.7]} 9... Be6 {[%clk
0:02:37.4]} 10. Re1 {[%clk 0:02:54]} 10... Rc8 {[%clk 0:02:33.5]} 11. Bf1 {[%clk
0:02:53.7]} 11... h6 {[%clk 0:02:30.1]} 12. Bh4 {[%clk 0:02:52.7]} 12... Ne5
{[%clk 0:02:22.4]} 13. Nd5 {[%clk 0:02:33.6]} 13... Bxd5 {[%clk 0:02:12.9]} 14.
exd5 {[%clk 0:02:34.5]} 14... Nc4 {[%clk 0:01:56.1]} 15. Bxc4 {[%clk 0:02:33.4]}
15... Rxc4 {[%clk 0:01:54.6]} 16. Bxf6 {[%clk 0:02:20.6]} 16... Bxf6 {[%clk
0:01:54.4]} 17. c3 {[%clk 0:02:20.6]} 17... Qc8 {[%clk 0:01:47.9]} 18. Qd3
{[%clk 0:02:17.1]} 18... Kg7 {[%clk 0:01:43.7]} 19. Re2 {[%clk 0:02:14.7]} 19...
a6 {[%clk 0:01:31.1]} 20. Nd2 {[%clk 0:02:06.4]} 20... Rg4 {[%clk 0:01:29.5]}
21. g3 {[%clk 0:01:55.1]} 21... Qf5 {[%clk 0:01:22.3]} 22. Qxf5 {[%clk
0:01:48.8]} 22... gxf5 {[%clk 0:01:23.2]} 23. f4 {[%clk 0:01:47.4]} 23... h5
{[%clk 0:01:18.4]} 24. Nf3 {[%clk 0:01:19.3]} 24... h4 {[%clk 0:01:18.5]} 25.
Kf2 {[%clk 0:01:18.6]} 25... Rh8 {[%clk 0:01:17.3]} 26. Rg1 {[%clk 0:01:15.7]}
26... hxg3+ {[%clk 0:01:10.5]} 27. hxg3 {[%clk 0:01:14.6]} 27... Rh3 {[%clk
0:01:10.7]} 28. c4 {[%clk 0:01:06.5]} 28... Kg6 {[%clk 0:01:04.8]} 29. b4 {[%clk
0:01:05.4]} 29... b6 {[%clk 0:01:03.5]} 30. Rc2 {[%clk 0:01:01.2]} 30... e5
{[%clk 0:00:55.2]} 31. dxe6 {[%clk 0:01:00.1]} 31... fxe6 {[%clk 0:00:56.1]} 32.
c5 {[%clk 0:00:54.1]} 32... bxc5 {[%clk 0:00:57]} 33. bxc5 {[%clk 0:00:53.8]}
33... dxc5 {[%clk 0:00:55.8]} 34. Rxc5 {[%clk 0:00:53.3]} 34... Rh2+ {[%clk
0:00:53]} 35. Rg2 {[%clk 0:00:45.2]} 35... Rh1 {[%clk 0:00:42]} 36. Rc6 {[%clk
0:00:42.8]} 36... Rb1 {[%clk 0:00:35.7]} 37. Rxe6 {[%clk 0:00:41.4]} 37... Rb2+
{[%clk 0:00:35.6]} 38. Kg1 {[%clk 0:00:41.5]} 38... Rb1+ {[%clk 0:00:36.1]} 39.
Kh2 {[%clk 0:00:40.7]} 39... Kf7 {[%clk 0:00:35.7]} 40. Rxa6 {[%clk 0:00:39.4]}
40... Rg6 {[%clk 0:00:36.1]} 41. Ne5+ {[%clk 0:00:37.1]} 41... Bxe5 {[%clk
0:00:36.1]} 42. Rxg6 {[%clk 0:00:36.7]} 42... Kxg6 {[%clk 0:00:35.9]} 43. fxe5
{[%clk 0:00:37.2]} 43... Re1 {[%clk 0:00:35.9]} 44. a4 {[%clk 0:00:35.9]} 44...
Rxe5 {[%clk 0:00:36]} 45. Ra2 {[%clk 0:00:35.2]} 45... Ra5 {[%clk 0:00:36.6]}
46. Kg2 {[%clk 0:00:35.4]} 46... Kf6 {[%clk 0:00:37.1]} 47. Kf3 {[%clk 0:00:36]}
47... Ke5 {[%clk 0:00:37.8]} 48. Ke3 {[%clk 0:00:36.3]} 48... Kd5 {[%clk
0:00:36.4]} 49. Kf4 {[%clk 0:00:36.1]} 49... Ke6 {[%clk 0:00:36.1]} 50. Ra3
{[%clk 0:00:34.6]} 50... Kf6 {[%clk 0:00:36.2]} 51. Ke3 {[%clk 0:00:29.6]} 51...
Ke5 {[%clk 0:00:36.4]} 52. Kd3 {[%clk 0:00:28.9]} 52... Kd5 {[%clk 0:00:36.1]}
53. Kc3 {[%clk 0:00:28.9]} 53... Kc5 {[%clk 0:00:34.6]} 54. Ra1 {[%clk
0:00:28.8]} 54... Ra8 {[%clk 0:00:33.9]} 55. a5 {[%clk 0:00:28.2]} 55... Rg8
{[%clk 0:00:33.4]} 56. Rg1 {[%clk 0:00:22.6]} 56... f4 {[%clk 0:00:33.9]} 57. g4
{[%clk 0:00:21.3]} 57... f3 {[%clk 0:00:33.8]} 58. Kd3 {[%clk 0:00:21.1]} 58...
f2 {[%clk 0:00:33.2]} 59. Rc1+ {[%clk 0:00:19.8]} 59... Kb5 {[%clk 0:00:32.1]}
60. Ke2 {[%clk 0:00:19.8]} 60... Rxg4 {[%clk 0:00:31.3]} 61. Kxf2 {[%clk
0:00:19.3]} 61... Kxa5 {[%clk 0:00:31.1]} 62. Rd1 {[%clk 0:00:18]} 62... Rb4
{[%clk 0:00:30.5]} 63. Rd2 {[%clk 0:00:18]} 63... Kb5 {[%clk 0:00:31.3]} 64. Re2
{[%clk 0:00:18.9]} 64... Ka4 {[%clk 0:00:30.6]} 65. Re3 {[%clk 0:00:19.8]} 65...
Rb3 {[%clk 0:00:30.2]} 66. Re2 {[%clk 0:00:20.7]} 66... Ka3 {[%clk 0:00:30.5]}
67. Ke1 {[%clk 0:00:21.5]} 67... Rb2 {[%clk 0:00:29.5]} 68. Kf2 {[%clk
0:00:22.4]} 68... Kb3 {[%clk 0:00:27.9]} 69. Rxb2+ {[%clk 0:00:22.8]} 69... Kxb2
{[%clk 0:00:28.8]} 1/2-1/2

[Event "*** Titled Tuesday Blitz"]
[Site "Chess.com"]
[Date "2021.04.20"]
[Round "6"]
[White "vovachesss"]
[Black "Gulkov_Igor"]
[Result "1-0"]
[WhiteElo "2698"]
[BlackElo "2523"]
[TimeControl "180+1"]
[EndTime "11:06:43 PDT"]
[Termination "vovachesss won on time"]

1. e4 {[%clk 0:03:00.9]} 1... c5 {[%clk 0:02:59.4]} 2. Be2 {[%clk 0:02:56.4]}
2... Nc6 {[%clk 0:02:51.7]} 3. f4 {[%clk 0:02:55.5]} 3... g6 {[%clk 0:02:50.6]}
4. Nf3 {[%clk 0:02:55.5]} 4... Bg7 {[%clk 0:02:50.4]} 5. c3 {[%clk 0:02:56]}
5... Nf6 {[%clk 0:02:50.1]} 6. d3 {[%clk 0:02:56.7]} 6... d6 {[%clk 0:02:49.6]}
7. O-O {[%clk 0:02:57.6]} 7... O-O {[%clk 0:02:49.5]} 8. Be3 {[%clk 0:02:57.5]}
8... b5 {[%clk 0:02:45.3]} 9. Kh1 {[%clk 0:02:57.7]} 9... b4 {[%clk 0:02:44.8]}
10. Nbd2 {[%clk 0:02:57.8]} 10... a5 {[%clk 0:02:43.9]} 11. d4 {[%clk
0:02:57.6]} 11... bxc3 {[%clk 0:02:38]} 12. bxc3 {[%clk 0:02:57.6]} 12... cxd4
{[%clk 0:02:37.2]} 13. cxd4 {[%clk 0:02:57.6]} 13... Ba6 {[%clk 0:02:25.2]} 14.
Rc1 {[%clk 0:02:52.1]} 14... Bxe2 {[%clk 0:01:44]} 15. Qxe2 {[%clk 0:02:53]}
15... Rc8 {[%clk 0:01:44.2]} 16. d5 {[%clk 0:02:50]} 16... Nb4 {[%clk
0:01:43.3]} 17. Nc4 {[%clk 0:02:09.8]} 17... Nd7 {[%clk 0:01:17.3]} 18. a3
{[%clk 0:02:03.7]} 18... Na6 {[%clk 0:01:06]} 19. Nxd6 {[%clk 0:02:04.1]} 19...
exd6 {[%clk 0:01:02.9]} 20. Qxa6 {[%clk 0:02:03.7]} 20... Re8 {[%clk 0:00:59.8]}
21. Nd2 {[%clk 0:01:20.9]} 21... Rxc1 {[%clk 0:00:50.8]} 22. Rxc1 {[%clk
0:01:19.6]} 22... Nf6 {[%clk 0:00:50.9]} 23. Qd3 {[%clk 0:01:13.3]} 23... Qe7
{[%clk 0:00:47.8]} 24. Rc4 {[%clk 0:01:12.7]} 24... Ng4 {[%clk 0:00:34.7]} 25.
Bg1 {[%clk 0:00:57.4]} 25... f5 {[%clk 0:00:31.8]} 26. h3 {[%clk 0:00:50.9]}
26... Nh6 {[%clk 0:00:24.5]} 27. e5 {[%clk 0:00:11.9]} 27... dxe5 {[%clk
0:00:22]} 28. d6 {[%clk 0:00:12.8]} 28... Qe6 {[%clk 0:00:20.2]} 29. fxe5 {[%clk
0:00:02.8]} 29... Bxe5 {[%clk 0:00:18.8]} 30. d7 {[%clk 0:00:02.5]} 30... Rd8
{[%clk 0:00:18.8]} 31. Rc8 {[%clk 0:00:02.6]} 31... Rxc8 {[%clk 0:00:17.9]} 32.
dxc8=Q+ {[%clk 0:00:01.5]} 32... Qxc8 {[%clk 0:00:17.9]} 33. Qd5+ {[%clk
0:00:02]} 33... Nf7 {[%clk 0:00:18.1]} 34. Nf3 {[%clk 0:00:02.3]} 34... Bf6
{[%clk 0:00:17.7]} 35. Qxa5 {[%clk 0:00:01.2]} 35... Kg7 {[%clk 0:00:17.3]} 36.
Qd5 {[%clk 0:00:01.6]} 36... Qd8 {[%clk 0:00:12.3]} 37. Qc4 {[%clk 0:00:01.7]}
37... Qd1 {[%clk 0:00:10.5]} 38. Kh2 {[%clk 0:00:01.5]} 38... Ne5 {[%clk
0:00:10]} 39. Nxe5 {[%clk 0:00:01.1]} 39... Bxe5+ {[%clk 0:00:10.1]} 40. Kh1
{[%clk 0:00:02]} 40... Qd6 {[%clk 0:00:06]} 41. Qc5 {[%clk 0:00:02.3]} 41...
Qxc5 {[%clk 0:00:05.4]} 42. Bxc5 {[%clk 0:00:03.2]} 42... Kf7 {[%clk 0:00:05.8]}
43. a4 {[%clk 0:00:03.8]} 43... Ke6 {[%clk 0:00:06.1]} 44. a5 {[%clk 0:00:04.4]}
44... Kd7 {[%clk 0:00:04.4]} 45. a6 {[%clk 0:00:05]} 45... Kc6 {[%clk
0:00:04.8]} 46. Kg1 {[%clk 0:00:05.4]} 46... Bc7 {[%clk 0:00:02.9]} 47. Kf1
{[%clk 0:00:05.2]} 47... Be5 {[%clk 0:00:01.7]} 48. Ke2 {[%clk 0:00:05.4]} 48...
h5 {[%clk 0:00:02.3]} 49. Kd3 {[%clk 0:00:05.6]} 49... g5 {[%clk 0:00:02.6]} 50.
Ke2 {[%clk 0:00:06]} 50... g4 {[%clk 0:00:02.7]} 51. hxg4 {[%clk 0:00:04.4]}
51... fxg4 {[%clk 0:00:03]} 52. Kd3 {[%clk 0:00:04.5]} 52... h4 {[%clk
0:00:03.4]} 53. Ke4 {[%clk 0:00:04.9]} 53... h3 {[%clk 0:00:03.1]} 54. gxh3
{[%clk 0:00:05.3]} 54... gxh3 {[%clk 0:00:03.5]} 55. a7 {[%clk 0:00:04.7]} 55...
Kb7 {[%clk 0:00:02.2]} 56. Bg1 {[%clk 0:00:04.7]} 56... h2 {[%clk 0:00:02.3]}
57. a8=Q+ {[%clk 0:00:02.7]} 1-0

[Event "*** Titled Tuesday Blitz"]
[Site "Chess.com"]
[Date "2021.04.20"]
[Round "6"]
[White "VinzentSpitzl"]
[Black "ARMQUEEN"]
[Result "1-0"]
[WhiteElo "2423"]
[BlackElo "2238"]
[TimeControl "180+1"]
[EndTime "11:06:43 PDT"]
[Termination "VinzentSpitzl won by resignation"]

1. Nf3 {[%clk 0:03:00.9]} 1... Nf6 {[%clk 0:02:58.6]} 2. g3 {[%clk 0:02:59.9]}
2... g6 {[%clk 0:02:57.2]} 3. Bg2 {[%clk 0:03:00.3]} 3... Bg7 {[%clk 0:02:56.9]}
4. O-O {[%clk 0:03:00.7]} 4... O-O {[%clk 0:02:56.9]} 5. d4 {[%clk 0:03:00.7]}
5... c5 {[%clk 0:02:56]} 6. c4 {[%clk 0:02:51.6]} 6... cxd4 {[%clk 0:02:54.6]}
7. Nxd4 {[%clk 0:02:51.6]} 7... Nc6 {[%clk 0:02:55.3]} 8. Nc3 {[%clk 0:02:50.8]}
8... Qa5 {[%clk 0:02:55.1]} 9. Nb3 {[%clk 0:02:38.7]} 9... Qh5 {[%clk 0:02:54]}
10. Nd5 {[%clk 0:02:32.1]} 10... e5 {[%clk 0:02:40.6]} 11. c5 {[%clk 0:02:15]}
11... d6 {[%clk 0:02:31.1]} 12. cxd6 {[%clk 0:02:14.2]} 12... Bh3 {[%clk
0:02:27.8]} 13. Bf3 {[%clk 0:01:57.4]} 13... Ng4 {[%clk 0:02:22.7]} 14. Re1
{[%clk 0:01:34.4]} 14... e4 {[%clk 0:02:04.4]} 15. Nf4 {[%clk 0:01:23.9]} 15...
Qb5 {[%clk 0:01:43.1]} 16. Bxe4 {[%clk 0:01:15.5]} 16... Qb6 {[%clk 0:00:42.4]}
17. Nxh3 {[%clk 0:01:07.1]} 17... Rfe8 {[%clk 0:00:35.9]} 18. Bf3 {[%clk
0:01:02.5]} 18... Nge5 {[%clk 0:00:32]} 19. Be3 {[%clk 0:00:56.3]} 19... Qd8
{[%clk 0:00:22.1]} 20. Nf4 {[%clk 0:00:43.3]} 20... Qd7 {[%clk 0:00:18.9]} 21.
Rc1 {[%clk 0:00:38.9]} 21... Nxf3+ {[%clk 0:00:18.8]} 22. exf3 {[%clk 0:00:39]}
22... Bxb2 {[%clk 0:00:19.7]} 23. Rc2 {[%clk 0:00:38.8]} 23... Bg7 {[%clk
0:00:19]} 24. Nc5 {[%clk 0:00:34.9]} 24... Qf5 {[%clk 0:00:18.8]} 25. Nxb7
{[%clk 0:00:30.5]} 25... g5 {[%clk 0:00:17.4]} 26. d7 {[%clk 0:00:28.4]} 26...
gxf4 {[%clk 0:00:17]} 27. dxe8=Q+ {[%clk 0:00:27.2]} 27... Rxe8 {[%clk
0:00:17.9]} 28. Rxc6 {[%clk 0:00:24.8]} 28... fxe3 {[%clk 0:00:17.2]} 29. Rxe3
{[%clk 0:00:24.3]} 29... Rb8 {[%clk 0:00:16.6]} 30. Rc7 {[%clk 0:00:16.6]} 30...
h6 {[%clk 0:00:15.8]} 31. Qd3 {[%clk 0:00:15]} 31... Qf6 {[%clk 0:00:14.4]} 32.
Qc4 {[%clk 0:00:12.3]} 32... Qa1+ {[%clk 0:00:13.6]} 33. Kg2 {[%clk 0:00:12.7]}
33... Qf6 {[%clk 0:00:13.3]} 34. Rc8+ {[%clk 0:00:12.4]} 34... Rxc8 {[%clk
0:00:13.6]} 35. Qxc8+ {[%clk 0:00:13.3]} 35... Kh7 {[%clk 0:00:14]} 36. Qc2+
{[%clk 0:00:13.4]} 36... Kg8 {[%clk 0:00:13.2]} 37. Re8+ {[%clk 0:00:13.5]}
37... Bf8 {[%clk 0:00:13.8]} 38. Qc8 {[%clk 0:00:09.9]} 38... Qg7 {[%clk
0:00:14]} 39. Rxf8+ {[%clk 0:00:09.6]} 39... Qxf8 {[%clk 0:00:14.2]} 40. Qxf8+
{[%clk 0:00:10.2]} 40... Kxf8 {[%clk 0:00:15.1]} 41. f4 {[%clk 0:00:10.8]} 41...
Ke7 {[%clk 0:00:16]} 42. Kf3 {[%clk 0:00:11.3]} 42... Kd7 {[%clk 0:00:16.9]} 43.
Nc5+ {[%clk 0:00:11.8]} 43... Kc7 {[%clk 0:00:17.8]} 44. Nd3 {[%clk 0:00:12.2]}
44... Kc6 {[%clk 0:00:18.7]} 45. Ke4 {[%clk 0:00:12.7]} 45... Kb5 {[%clk
0:00:18.7]} 46. Kd4 {[%clk 0:00:12.8]} 46... Ka4 {[%clk 0:00:19.6]} 47. Kc3
{[%clk 0:00:11.8]} 47... Ka3 {[%clk 0:00:20.5]} 48. Nb4 {[%clk 0:00:12.1]} 48...
a5 {[%clk 0:00:19.7]} 49. Nc6 {[%clk 0:00:12.4]} 49... a4 {[%clk 0:00:19.8]} 50.
Nb4 {[%clk 0:00:09.3]} 50... f5 {[%clk 0:00:19.4]} 51. Nc2+ {[%clk 0:00:09]}
51... Kxa2 {[%clk 0:00:18.4]} 52. Kb4 {[%clk 0:00:09.5]} 52... Kb2 {[%clk
0:00:18.8]} 53. Kxa4 {[%clk 0:00:05.9]} 53... Kxc2 {[%clk 0:00:18.6]} 54. g4
{[%clk 0:00:06.4]} 54... Kd3 {[%clk 0:00:19.5]} 55. gxf5 {[%clk 0:00:06.3]}
55... Ke4 {[%clk 0:00:19]} 56. f6 {[%clk 0:00:07.2]} 56... Kf3 {[%clk
0:00:19.9]} 57. f7 {[%clk 0:00:08.1]} 57... Kg2 {[%clk 0:00:20.7]} 58. f8=Q
{[%clk 0:00:09]} 58... Kxh2 {[%clk 0:00:21.6]} 59. Qxh6+ {[%clk 0:00:09.3]}
59... Kg2 {[%clk 0:00:21.6]} 60. Qg5+ {[%clk 0:00:09.8]} 60... Kxf2 {[%clk
0:00:22.5]} 61. f5 {[%clk 0:00:10.3]} 61... Ke2 {[%clk 0:00:22.7]} 62. f6 {[%clk
0:00:11.2]} 62... Kd3 {[%clk 0:00:23.2]} 63. f7 {[%clk 0:00:12.1]} 63... Kc4
{[%clk 0:00:24.1]} 64. f8=Q {[%clk 0:00:12]} 64... Kd4 {[%clk 0:00:24.2]} 1-0